bitfinex-derivatives/quotes_ETHF0:USTF0_20240826
["timestamp","ask_amount","ask_price","bid_price","bid_amount"]
[1724657763980,9.62722271,2741.4,2741.3,0.79293893]
[1724657764178,9.62722271,2741.4,2741.3,0.42826893]
[1724657764380,9.62722271,2741.4,2741.3,0.37209142]
[1724657764580,10.53888271,2741.4,2741.3,0.37209142]
[1724657766680,10.53888271,2741.4,2741.3,0.00359142]
[1724657767584,13.39529707,2741.4,2741.3,0.00359142]
[1724657767776,18.39529707,2741.4,2741.3,0.00359142]
[1724657767975,20.53875042,2741.4,2741.3,0.00359142]
[1724657768179,16.63057785,2741.4,2741.3,0.00359142]
[1724657768481,21.01438961,2741.4,2741.3,0.00103994]
[1724657768686,19.96438961,2741.4,2741.3,0.00103994]
[1724657768874,21.01438961,2741.4,2741.3,0.00103994]
[1724657770583,17.68057785,2741.4,2741.3,0.00103994]
[1724657771188,21.01731267,2741.4,2741.3,0.00103994]
[1724657771579,17.68057785,2741.4,2741.3,0.00103994]
[1724657772583,21.49064844,2741.4,2741.3,0.00103994]
[1724657773183,16.49772014,2741.4,2741.3,0.00103994]
[1724657774479,25.24876273,2741.4,2741.3,0.00103994]
[1724657774679,21.43869214,2741.4,2741.3,0.00103994]
[1724657775688,25.72014475,2741.4,2741.3,0.00103994]
[1724657775889,20.72014475,2741.4,2741.3,0.00103994]
[1724657776193,25.72014475,2741.4,2741.3,0.00103994]
[1724657778180,18.75848475,2741.4,2741.3,0.00103994]
[1724657778477,11.60933441,2741.4,2741.3,0.36571994]
[1724657778684,3.50552955,2741.4,2741.3,0.36571994]
[1724657779184,6.85028316,2741.4,2741.3,0.36571994]
[1724657779880,5.75858802,2741.4,2741.3,0.36571994]
[1724657780085,4.92018955,2741.4,2741.3,0.00103994]
[1724657780487,8.7425418,2741.4,2741.3,0.00103994]
[1724657781590,8.67562064,2741.4,2741.3,0.00103994]
[1724657781793,4.92018955,2741.4,2741.3,0.00103994]
[1724657783197,4.92018955,2741.4,2741.3,0.00023994]
[1724657783198,12.40944216,2741.4,2741.3,0.00023994]
[1724657783398,11.88342064,2741.4,2741.3,0.00023994]
[1724657783691,8.12798955,2741.4,2741.3,0.00023994]
[1724657784294,8.12798955,2741.4,2741.3,0.35273994]
[1724657784590,11.58984402,2741.4,2741.3,0.71741994]
[1724657785495,11.95450402,2741.4,2741.3,0.71741994]
[1724657785995,10.59066961,2741.4,2741.3,0.71741994]
[1724657786186,9.81571935,2741.4,2741.3,0.71741994]
[1724657786382,11.96598443,2741.4,2741.3,0.71741994]
[1724657786794,11.60132443,2741.4,2741.3,0.71741994]
[1724657787793,10.23436679,2741.4,2741.3,0.71741994]
[1724657787999,11.96592024,2741.4,2741.3,0.71741994]
[1724657788592,14.42944475,2741.4,2741.3,0.35273994]
[1724657788798,19.37208322,2741.4,2741.3,0.35273994]
[1724657788995,15.54578151,2741.4,2741.3,0.35273994]
[1724657789396,15.54590518,2741.4,2741.3,0.35273994]
[1724657789697,19.82735779,2741.4,2741.3,0.35273994]
[1724657790590,15.54590518,2741.4,2741.3,0.35273994]
[1724657792296,15.54589058,2741.4,2741.3,0.35273994]
[1724657793494,15.5458871,2741.4,2741.3,0.35273994]
[1724657795903,12.33804893,2741.4,2741.3,0.35273994]
[1724657796098,15.54584893,2741.4,2741.3,0.35273994]
[1724657798407,11.89782969,2741.4,2741.3,0.35273994]
[1724657799503,8.69002969,2741.4,2741.3,0.35273994]
[1724657799702,8.13965115,2741.4,2741.3,0.35273994]
[1724657800205,11.89782969,2741.4,2741.3,0.35273994]
[1724657801404,11.9655347,2741.4,2741.3,0.71741994]
[1724657803316,10.5508747,2741.4,2741.3,6.32711994]
[1724657803502,8.06176227,2741.4,2741.3,11.32711994]
[1724657803697,1.36692607,2741.4,2741.3,11.32711994]
[1724657804905,1.36692607,2741.4,2741.3,10.41541994]
[1724657806011,1.36692607,2741.4,2741.3,5.41541994]
[1724657806212,1.36692607,2741.4,2741.3,10.41541994]
[1724657806407,0.20492607,2741.4,2741.3,12.23881994]
[1724657806603,2.8744288,2741.8,2741.7,0.36462]
[1724657806807,1.29412399,2741.8,2741.7,1.41462]
[1724657807010,1.29412399,2741.8,2741.7,5.06182]
[1724657808108,1.29412399,2741.8,2741.7,10.06182]
[1724657808414,2.39278555,2741.8,2741.7,10.97338]
[1724657808616,2.57515544,2741.8,2741.7,10.97338]
[1724657808811,3.4990635,2741.8,2741.7,10.97338]
[1724657809120,2.09689029,2741.8,2741.7,10.97338]
[1724657809314,0.18784604,2741.8,2741.7,15.07252572]
[1724657809514,1.43711476,2741.8,2741.7,15.07252572]
[1724657809720,1.61948465,2741.8,2741.7,15.80702572]
[1724657809907,0.59766509,2742.0,2741.9,1.2761]
[1724657810133,0.77998823,2742.0,2741.9,2.3261]
[1724657810422,1.43051371,2742.0,2741.9,14.21378417]
[1724657810822,0.95370298,2742.0,2741.9,14.21378417]
[1724657811013,0.95370298,2742.0,2741.9,14.57838417]
[1724657811223,0.95370298,2742.1,2742.0,0.36458]
[1724657811411,0.95370298,2742.1,2742.0,4.01178]
[1724657811610,0.95370298,2742.1,2742.0,9.01178]
[1724657811820,0.95370298,2742.1,2742.0,9.92324]
[1724657813419,0.95917913,2742.2,2742.1,0.36457]
[1724657813613,0.95917913,2742.2,2742.1,5.42667]
[1724657813808,0.95917913,2742.2,2742.1,10.42667]
[1724657814016,0.95917913,2742.2,2742.1,5.42667]
[1724657814316,1.43598986,2742.2,2742.1,4.37667]
[1724657814922,1.61833185,2742.2,2742.1,4.01177]
[1724657815310,1.97993185,2742.2,2742.1,4.01177]
[1724657815616,1.97993185,2742.2,2742.1,0.36457]
[1724657815813,1.59941814,2742.2,2742.0,0.36457]
[1724657816019,1.42768871,2742.1,2742.0,0.36457]
[1724657817906,1.41707615,2742.2,2741.9,1.05]
[1724657817907,2.84476486,2742.2,2742.1,0.36457]
[1724657818111,1.97710711,2742.2,2742.1,0.36457]
[1724657818327,1.79476486,2742.2,2742.1,0.36457]
[1724657819821,1.9771085,2742.2,2742.1,0.36457]
[1724657820220,1.79476486,2742.2,2742.1,0.36457]
[1724657820419,1.97710849,2742.2,2742.1,0.36457]
[1724657820615,1.97710839,2742.2,2742.1,0.36457]
[1724657821028,1.97710839,2742.2,2742.0,1.41458]
[1724657821321,1.42768871,2742.1,2742.0,0.36458]
[1724657821927,1.61004361,2742.1,2742.0,0.36458]
[1724657822325,1.61004339,2742.1,2742.0,0.36458]
[1724657824016,1.61004339,2742.1,2741.6,3.5883]
[1724657824017,2.66004339,2742.1,2741.6,3.5883]
[1724657824216,0.95159602,2741.8,2741.7,1.05]
[1724657824428,0.95159602,2741.9,2741.7,1.05]
[1724657825125,0.95159602,2741.8,2741.7,1.41462]
[1724657825320,0.95154034,2741.8,2741.7,1.05]
[1724657825520,0.95154034,2741.8,2741.7,4.01182]
[1724657825821,0.95154034,2741.8,2741.3,0.91192994]
[1724657825822,1.95517247,2741.8,2741.3,0.00023994]
[1724657826023,1.42745897,2741.5,2741.4,0.36465]
[1724657826222,2.47745897,2741.5,2741.4,0.36465]
[1724657826428,2.65985268,2741.5,2741.3,0.36490994]
[1724657826619,1.76896,2741.4,2741.3,0.00023994]
[1724657826817,2.98088807,2741.4,2741.3,0.00023994]
[1724657827015,0.36469,2741.2,2741.1,0.00547615]
[1724657827218,1.59709666,2741.2,2741.1,0.00547615]
[1724657827827,1.23240666,2741.2,2741.1,0.00547615]
[1724657828023,0.18598172,2741.2,2741.1,0.00867609]
[1724657828226,0.18598172,2741.2,2741.1,0.37337609]
[1724657828729,0.00357506,2741.2,2741.1,0.37337609]
[1724657830332,0.35987506,2741.2,2741.1,0.37337609]
[1724657830526,0.54228172,2741.2,2741.1,0.37337609]
[1724657831526,0.54229214,2741.2,2741.1,0.37337609]
[1724657835038,0.18599214,2741.2,2741.1,4.02137609]
[1724657835329,0.95517053,2741.2,2741.1,9.93313609]
[1724657835632,0.95517053,2741.2,2741.1,5.29143609]
[1724657835826,0.95517053,2741.2,2741.1,4.37967609]
[1724657838326,0.00357506,2741.2,2741.1,4.37967609]
[1724657838528,0.95538272,2741.2,2741.1,0.73167609]
[1724657838723,0.95538272,2741.2,2741.1,4.37967609]
[1724657840534,1.4310899,2741.2,2741.1,4.37967609]
[1724657841137,0.00357506,2741.2,2741.1,4.37967609]
[1724657841729,1.4310899,2741.2,2741.1,4.37967609]
[1724657845122,0.95575967,2741.2,2741.1,4.37967609]
[1724657845328,0.95583144,2741.2,2741.1,4.37967609]
[1724657846340,1.4310899,2741.2,2741.1,4.37967609]
[1724657847824,1.4310899,2741.2,2741.1,4.02137609]
[1724657848028,1.4310899,2741.2,2741.1,0.37337609]
[1724657849139,0.18598597,2741.2,2741.1,0.37337609]
[1724657849534,0.00357506,2741.2,2741.1,0.37337609]
[1724657850133,1.43227039,2741.2,2741.1,0.37337609]
[1724657850333,0.18598597,2741.2,2741.1,0.37337609]
[1724657851041,2.0897219,2741.2,2741.1,0.37337609]
[1724657851245,0.18599229,2741.2,2741.1,0.37337609]
[1724657852237,3.13972822,2741.2,2741.1,0.37337609]
[1724657852445,3.50441822,2741.2,2741.0,0.36471]
[1724657852627,0.54871723,2741.1,2741.0,0.36471]
[1724657852833,2.45245316,2741.1,2741.0,0.36471]
[1724657853339,0.54871723,2741.1,2741.0,0.36471]
[1724657853545,0.54871723,2741.1,2741.0,0.36812773]
[1724657855040,1.97725914,2741.1,2741.0,0.36812773]
[1724657855940,1.79484191,2741.1,2741.0,2.32991773]
[1724657856141,0.95233865,2741.1,2741.0,5.97791773]
[1724657856342,0.95233865,2741.1,2741.0,6.33731773]
[1724657857241,0.00357506,2741.2,2741.1,0.3647]
[1724657857443,1.90731099,2741.2,2741.1,0.3647]
[1724657858140,0.18597599,2741.2,2741.1,0.3647]
[1724657858345,2.95731099,2741.2,2741.1,0.3647]
[1724657858539,3.13971192,2741.2,2741.1,0.3647]
[1724657859445,2.26737995,2741.2,2741.1,0.3647]
[1724657859643,2.26742942,2741.2,2741.1,0.3647]
[1724657860139,4.65473882,2741.2,2741.1,0.3647]
[1724657861042,2.26788371,2741.2,2741.1,0.3647]
[1724657864554,5.13683636,2741.2,2741.1,0.3647]
[1724657865047,2.26788371,2741.2,2741.1,0.3647]
[1724657865245,4.23840574,2741.2,2741.1,0.3647]
[1724657866044,4.24118626,2741.2,2741.1,0.3647]
[1724657866751,3.19118626,2741.2,2741.1,0.3647]
[1724657869350,3.19118626,2741.2,2741.0,0.00341773]
[1724657869557,6.41655048,2741.1,2741.0,0.36812773]
[1724657870049,3.5463112,2741.1,2741.0,0.36812773]
[1724657871053,4.62677039,2741.1,2741.0,0.36812773]
[1724657871259,8.63947039,2741.1,2741.0,0.00341773]
[1724657871447,8.27477039,2741.1,2741.0,0.36812773]
[1724657873355,4.62677039,2741.1,2741.0,0.36812773]
[1724657873550,8.27477039,2741.1,2741.0,0.36812773]
[1724657873755,4.62677039,2741.1,2741.0,0.36812773]
[1724657873951,8.27477039,2741.1,2741.0,0.36812773]
[1724657875250,8.27477039,2741.1,2741.0,0.00341773]
[1724657875956,8.27472516,2741.1,2741.0,0.00341773]
[1724657877158,8.27472516,2741.1,2741.0,0.36812773]
[1724657877354,8.27472516,2741.1,2741.0,0.00341773]
[1724657877763,8.27472516,2741.1,2741.0,0.36812773]
[1724657878257,8.27472516,2741.1,2741.0,0.00341773]
[1724657878462,4.62672516,2741.1,2741.0,0.00341773]
[1724657879462,4.62672516,2741.1,2741.0,0.36812773]
[1724657880561,4.62658683,2741.1,2741.0,0.36812773]
[1724657880750,4.62658683,2741.1,2741.0,0.00341773]
[1724657880954,8.33845007,2741.1,2740.8,3.21327615]
[1724657881157,6.46930639,2741.0,2740.8,3.21327615]
[1724657881356,4.11728436,2740.9,2740.8,3.57801615]
[1724657882063,5.16728436,2740.9,2740.8,3.5821432]
[1724657884366,2.297365,2740.9,2740.8,3.5821432]
[1724657887069,5.16728456,2740.9,2740.8,3.5821432]
[1724657888867,5.16728456,2740.9,2740.8,0.3743432]
[1724657889463,5.16722046,2740.9,2740.8,0.3743432]
[1724657890561,4.11722046,2740.9,2740.8,0.3743432]
[1724657890889,1.2473009,2740.9,2740.8,0.3743432]
[1724657891767,1.2473009,2740.9,2740.8,5.9850032]
[1724657891969,2.39091508,2741.0,2740.9,0.91183]
[1724657892163,0.00357506,2741.2,2741.0,0.91179]
[1724657892164,2.39449014,2741.2,2741.0,0.91179]
[1724657892469,2.39449014,2741.2,2741.1,9.13085742]
[1724657892857,2.57687235,2741.2,2741.1,15.04261742]
[1724657893167,0.18595727,2741.2,2741.1,15.04261742]
[1724657894171,0.18595407,2741.2,2741.1,15.04261742]
[1724657894570,0.18595407,2741.2,2741.1,18.25041742]
[1724657894955,0.18595407,2741.2,2741.1,17.33865742]
[1724657895156,2.57686915,2741.2,2741.1,17.33865742]
[1724657895961,2.57686915,2741.2,2741.1,12.33865742]
[1724657896370,2.57686915,2741.2,2741.1,17.33865742]
[1724657896872,2.57686915,2741.2,2741.1,12.33865742]
[1724657897061,2.57686915,2741.2,2741.1,14.13085742]
[1724657897264,2.57686915,2741.2,2741.1,17.33865742]
[1724657897561,0.18595407,2741.2,2741.1,12.33865742]
[1724657897768,2.57686915,2741.2,2741.1,12.33865742]
[1724657897978,2.57686915,2741.2,2741.1,17.33865742]
[1724657898274,0.18595407,2741.2,2741.1,17.33865742]
[1724657899364,0.18595407,2741.2,2741.1,12.33865742]
[1724657899660,0.18595407,2741.2,2741.1,16.95655742]
[1724657899971,0.88545407,2741.2,2741.1,3.5725]
[1724657900306,0.88545407,2741.2,2740.9,0.3861]
[1724657900307,5.58345407,2741.2,2740.9,0.3861]
[1724657900574,2.38928794,2741.0,2740.9,1.80083]
[1724657900768,2.57166695,2741.0,2740.9,1.80083]
[1724657900965,2.38928794,2741.0,2740.9,1.80083]
[1724657901167,2.57166695,2741.0,2740.9,1.80083]
[1724657901573,2.38928794,2741.0,2740.9,1.80083]
[1724657901974,2.57166695,2741.0,2740.9,1.80083]
[1724657902369,0.18237901,2741.0,2740.9,0.75083]
[1724657902675,2.57173118,2741.0,2740.9,1.80083]
[1724657902866,2.38935217,2741.0,2740.9,1.80083]
[1724657903071,2.57173118,2741.0,2740.9,1.80083]
[1724657903375,1.12533787,2741.0,2740.9,1.41473]
[1724657903771,1.05,2741.1,2741.0,0.36471]
[1724657903972,2.17553023,2741.1,2741.0,0.36471]
[1724657904776,5.04544979,2741.1,2741.0,0.36471]
[1724657908879,3.91991956,2741.1,2741.0,0.36471]
[1724657909081,5.04545823,2741.1,2741.0,0.36471]
[1724657911982,6.90541149,2741.1,2741.0,0.36471]
[1724657913079,5.85541149,2741.1,2741.0,0.36471]
[1724657913282,3.99545823,2741.1,2741.0,0.36471]
[1724657913577,5.85538313,2741.1,2741.0,0.36471]
[1724657913787,3.99545823,2741.1,2741.0,0.36471]
[1724657914577,1.12553867,2741.1,2741.0,0.36471]
[1724657916177,1.49093867,2741.1,2741.0,0.36471]
[1724657918779,1.49085235,2741.1,2741.0,0.36471]
[1724657919683,4.36077191,2741.1,2741.0,0.36471]
[1724657919889,1.49085235,2741.1,2741.0,0.36471]
[1724657920083,4.36077191,2741.1,2741.0,0.36471]
[1724657922685,1.49085235,2741.1,2741.0,0.36471]
[1724657922890,4.36077191,2741.1,2741.0,0.36471]
[1724657923697,3.23531956,2741.1,2741.0,0.36471]
[1724657923990,9.05877833,2741.1,2740.8,0.0096032]
[1724657924185,4.28464956,2740.9,2740.8,0.0096032]
[1724657924388,7.26993631,2740.9,2740.8,0.0096032]
[1724657924592,4.40001675,2740.9,2740.8,0.0096032]
[1724657924786,7.267426,2740.9,2740.8,0.0096032]
[1724657925689,10.475226,2740.9,2740.8,0.0096032]
[1724657925996,9.060496,2740.9,2740.8,0.3743432]
[1724657928596,10.110496,2740.9,2740.8,0.3743432]
[1724657928800,10.11047757,2740.9,2740.8,0.3743432]
[1724657929290,8.25064959,2740.9,2740.8,0.3743432]
[1724657930904,5.04284959,2740.9,2740.8,0.3743432]
[1724657933603,3.91740925,2740.9,2740.8,0.3743432]
[1724657933905,5.04263166,2740.9,2740.8,0.3743432]
[1724657934102,2.17522241,2740.9,2740.8,0.3743432]
[1724657934311,5.04263166,2740.9,2740.8,0.3743432]
[1724657935410,2.17522241,2740.9,2740.8,0.3743432]
[1724657937001,0.36476,2740.7,2740.3,0.3684]
[1724657937206,0.36476,2740.7,2740.3,0.73321]
[1724657937207,2.38798902,2740.4,2740.3,0.73321]
[1724657937404,1.12522241,2740.4,2740.1,1.05]
[1724657937711,1.05,2740.5,2740.2,0.36482]
[1724657937712,3.87567383,2740.3,2740.2,0.36482]
[1724657938011,3.87567383,2740.3,2740.2,0.36810731]
[1724657938419,2.53762241,2740.3,2740.2,0.36810731]
[1724657942001,2.53749475,2740.3,2740.2,0.36810731]
[1724657943700,2.53749475,2740.3,2740.0,0.37032615]
[1724657943701,0.36483,2740.2,2740.0,0.37032615]
[1724657944007,2.17509475,2740.1,2740.0,0.00547615]
[1724657944710,2.17509475,2740.1,2740.0,0.00804737]
[1724657945205,2.53992475,2740.1,2740.0,0.00804737]
[1724657945804,2.17509475,2740.1,2740.0,0.00804737]
[1724657946010,2.53992475,2740.1,2740.0,0.00804737]
[1724657946313,2.53992475,2740.1,2740.0,0.37289737]
[1724657947004,2.53948621,2740.1,2740.0,0.37289737]
[1724657947204,2.17465621,2740.1,2740.0,0.37289737]
[1724657948407,2.53948621,2740.1,2740.0,0.37289737]
[1724657950602,2.53948621,2740.1,2740.0,0.00804737]
[1724657951102,2.53948621,2740.1,2740.0,0.37289737]
[1724657951316,2.53948621,2740.1,2740.0,0.00804737]
[1724657951611,0.36486,2739.9,2739.8,0.36487]
[1724657951812,1.41486,2739.9,2739.8,0.36487]
[1724657952015,2.53889217,2739.9,2739.8,0.36487]
[1724657952309,4.5578234,2739.9,2739.8,0.36487]
[1724657952510,4.5578234,2739.9,2739.8,0.36818151]
[1724657952814,4.9096234,2739.9,2739.8,0.36818151]
[1724657955408,2.0886569,2739.9,2739.8,1.41818151]
[1724657955812,1.90614091,2739.9,2739.8,1.41818151]
[1724657958122,1.90614091,2739.9,2739.8,0.36818151]
[1724657958416,2.08864034,2739.9,2739.8,0.36818151]
[1724657962124,2.08864034,2739.9,2739.8,0.72708151]
[1724657964126,2.44814034,2739.9,2739.8,0.72708151]
[1724657964726,2.80824034,2739.9,2739.8,0.72708151]
[1724657965323,0.90209943,2739.9,2739.8,0.72708151]
[1724657966735,0.90210549,2739.9,2739.8,0.72708151]
[1724657969327,0.90210549,2739.9,2739.8,1.63927151]
[1724657969528,0.3595,2739.9,2739.8,2.68927151]
[1724657969723,0.3595,2739.9,2739.8,1.63927151]
[1724657970132,0.3595,2739.9,2739.8,0.72708151]
[1724657970332,2.44924118,2739.9,2739.8,0.72708151]
[1724657970826,0.54199244,2739.9,2739.8,0.72708151]
[1724657971227,0.3595,2739.9,2739.8,0.72708151]
[1724657975232,0.3595,2739.9,2739.8,0.36818151]
[1724657978345,3.86813167,2739.9,2739.8,0.36818151]
[1724657978643,3.50863167,2739.9,2739.8,4.92997151]
[1724657978848,3.50863167,2739.9,2739.8,19.2044222]
[1724657978849,2.56629138,2739.9,2739.8,19.2044222]
[1724657979546,2.56629138,2739.9,2739.8,14.2044222]
[1724657983340,2.38379123,2739.9,2739.8,14.2044222]
[1724657983746,3.50991919,2739.9,2739.8,14.2044222]
[1724657983938,2.38379123,2739.9,2739.8,14.2044222]
[1724657984441,2.56629138,2739.9,2739.8,14.2044222]
[1724657985147,2.56629138,2739.9,2739.8,13.2922322]
[1724657986440,2.56629138,2739.9,2739.8,10.0844322]
[1724657986638,2.56629138,2739.9,2739.8,13.2922322]
[1724657988345,2.56629138,2739.9,2739.8,9.6426322]
[1724657988546,0.94362781,2740.0,2739.9,1.27702]
[1724657988547,2.38379123,2740.0,2739.9,1.27702]
[1724657988746,2.56626452,2740.0,2739.9,0.36486]
[1724657988948,2.56626452,2740.0,2739.9,4.39366]
[1724657989745,3.50997588,2740.0,2739.9,4.39366]
[1724657990654,3.50997588,2740.0,2739.9,8.51362]
[1724657991349,3.50997588,2740.0,2739.9,7.60146]
[1724657992753,3.50997588,2740.0,2739.9,8.51362]
[1724657992945,3.50997588,2740.0,2739.9,14.42578]
[1724657993146,3.50997588,2740.0,2739.9,17.60726711]
[1724657993657,2.38379123,2740.1,2740.0,0.36485]
[1724657993855,3.515852,2740.1,2740.0,1.41485]
[1724657994059,3.515852,2740.1,2740.0,10.07533882]
[1724657994355,3.51578889,2740.1,2740.0,10.07533882]
[1724657995252,3.51578889,2740.1,2740.0,13.28313882]
[1724657996554,2.09401246,2740.1,2740.0,19.19526882]
[1724657996861,1.4336102,2740.2,2740.1,1.27692]
[1724657997156,1.4336102,2740.2,2740.1,5.06443]
[1724657997359,1.4336102,2740.2,2740.1,8.88943993]
[1724657998646,1.4336102,2740.2,2740.1,9.80152993]
[1724657998856,1.4336102,2740.3,2740.2,1.27688]
[1724657999055,1.61605432,2740.3,2740.2,4.92648]
[1724657999261,1.4336102,2740.3,2740.2,8.84626262]
[1724657999750,1.61605423,2740.3,2740.2,8.84626262]
[1724658000150,1.61605423,2740.3,2740.2,25.54626262]
[1724658001060,1.61605343,2740.3,2740.2,25.54626262]
[1724658001952,1.4336102,2740.3,2740.2,25.54626262]
[1724658002967,1.91154274,2740.4,2740.3,0.36481]
[1724658003262,2.09398884,2740.4,2740.3,1.41481]
[1724658007864,2.09399725,2740.4,2740.3,2.32684]
[1724658012071,1.91154274,2740.4,2740.3,2.32684]
[1724658012269,2.09399725,2740.4,2740.3,2.32684]
[1724658012671,2.09399294,2740.4,2740.3,2.32684]
[1724658015272,2.09399294,2740.4,2740.3,5.53464]
[1724658015667,0.1824502,2740.4,2740.3,5.53464]
[1724658017686,3.14189169,2740.5,2740.4,0.36479]
[1724658018688,4.26628703,2740.5,2740.4,0.36479]
[1724658020285,1.87627149,2740.5,2740.4,1.41479]
[1724658020492,3.13983575,2740.5,2740.4,1.41479]
[1724658020678,1.87627149,2740.5,2740.4,1.41479]
[1724658021083,3.1398305,2740.5,2740.4,1.41479]
[1724658021283,1.87627149,2740.5,2740.4,1.41479]
[1724658021476,0.75187615,2740.5,2740.4,1.41479]
[1724658021681,1.87627149,2740.5,2740.4,1.41479]
[1724658022575,1.87629107,2740.5,2740.4,1.41479]
[1724658022774,3.14014416,2740.5,2740.4,1.41479]
[1724658022982,4.26455908,2740.5,2740.4,1.41479]
[1724658023181,1.87629107,2740.5,2740.4,1.41479]
[1724658029997,1.87629107,2740.5,2740.4,2.32678]
[1724658030896,0.37577615,2740.5,2740.4,10.79352649]
[1724658031092,2.09976114,2740.5,2740.4,15.79352649]
[1724658031290,1.43372814,2740.5,2740.4,14.51674649]
[1724658031497,0.09679554,2740.6,2740.5,2.1887]
[1724658031691,0.95541828,2740.7,2740.6,2.00607326]
[1724658031890,0.95541828,2740.7,2740.6,26.58120785]
[1724658032198,0.95541828,2740.7,2740.6,28.07954326]
[1724658032390,0.95541828,2740.7,2740.6,32.21665351]
[1724658033085,0.95541828,2740.7,2740.6,35.18365351]
[1724658033586,0.95541828,2740.8,2740.7,1.27664]
[1724658033896,0.95541828,2740.8,2740.7,6.25250139]
[1724658034101,0.95541828,2740.8,2740.7,14.90130139]
[1724658034601,0.95541828,2740.8,2740.7,9.90130139]
[1724658036193,0.95541828,2740.8,2740.7,14.90130139]
[1724658036894,1.43915217,2740.9,2740.8,0.36474]
[1724658037197,1.43915217,2740.9,2740.8,8.12341581]
[1724658038492,0.00547615,2740.9,2740.8,8.12341581]
[1724658038697,0.00547615,2740.9,2740.8,11.33121581]
[1724658038899,0.00547615,2740.9,2740.8,8.12341581]
[1724658039195,0.00547615,2740.9,2740.8,11.33121581]
[1724658041910,1.43781247,2740.9,2740.8,11.33121581]
[1724658046208,1.43781247,2740.9,2740.8,3.57254]
[1724658046409,0.00547615,2740.9,2740.8,4.62254]
[1724658046604,0.00547615,2740.9,2740.8,3.57254]
[1724658046807,0.36475,2740.8,2740.5,0.36478]
[1724658047011,0.7427,2740.7,2740.5,0.36478]
[1724658047211,1.37323793,2740.7,2740.5,1.41478]
[1724658047401,0.7427,2740.7,2740.6,0.36477]
[1724658047607,1.37319143,2740.7,2740.6,0.36477]
[1724658047803,7.4088701,2740.7,2740.6,0.36477]
[1724658048008,5.02203389,2740.7,2740.6,0.36477]
[1724658048314,0.7427,2740.7,2740.6,1.41477]
[1724658049212,0.7427,2740.7,2740.6,2.3267]
[1724658051819,0.7427,2740.7,2740.6,1.41477]
[1724658054905,5.02203913,2740.7,2740.4,3.21327615]
[1724658055112,1.7927,2740.7,2740.6,3.2078]
[1724658055315,1.7927,2740.7,2740.4,0.37026615]
[1724658055517,2.38734731,2740.5,2740.1,4.195]
[1724658055714,0.3764,2740.4,2740.2,1.41481]
[1724658056019,0.3764,2740.4,2740.3,0.36481]
[1724658056220,1.00717181,2740.4,2740.3,0.36481]
[1724658056423,0.3764,2740.4,2740.3,0.36481]
[1724658058319,2.76374731,2740.4,2740.2,1.05]
[1724658058522,2.76374731,2740.4,2740.3,0.36481]
[1724658058823,2.76374731,2740.4,2740.2,1.41481]
[1724658059016,3.39446138,2740.4,2740.2,1.41481]
[1724658059219,3.01808648,2740.3,2740.2,1.41481]
[1724658059613,0.63073917,2740.3,2740.2,1.41481]
[1724658061125,2.76374731,2740.4,2740.2,1.41481]
[1724658061328,0.3595,2740.3,2740.2,1.41481]
[1724658061511,0.99014102,2740.3,2740.2,1.41481]
[1724658061711,6.05455102,2740.3,2740.0,0.36483]
[1724658061917,2.38702222,2740.1,2740.0,0.36485]
[1724658062120,4.06766324,2740.1,2740.0,0.36485]
[1724658062323,7.71726324,2740.1,2740.0,0.36485]
[1724658062624,5.33032601,2740.1,2739.9,0.36485]
[1724658062823,1.00392601,2740.0,2739.9,0.36485]
[1724658063018,4.65352601,2740.0,2739.9,0.36485]
[1724658063214,7.03965095,2740.0,2739.9,0.36485]
[1724658063629,0.36486,2739.9,2739.8,0.00331151]
[1724658063819,0.36488,2739.8,2739.3,1.05]
[1724658064019,0.36488,2739.8,2739.4,0.36492]
[1724658064020,1.90899277,2739.5,2739.4,0.36492]
[1724658064720,1.90899277,2739.5,2739.4,0.00269379]
[1724658064926,3.6504,2739.5,2739.4,0.00269379]
[1724658065118,5.55768434,2739.5,2739.4,0.00269379]
[1724658065320,3.6504,2739.5,2739.4,0.00269379]
[1724658065725,5.55757405,2739.5,2739.4,0.36762379]
[1724658066019,8.6504,2739.5,2739.4,0.36762379]
[1724658066215,10.55671866,2739.5,2739.4,0.00269379]
[1724658066421,8.6504,2739.5,2739.4,0.00269379]
[1724658066630,12.03167876,2739.5,2739.4,0.00269379]
[1724658066826,0.36493,2739.4,2739.0,0.36497]
[1724658067023,0.95322674,2739.1,2739.0,0.36497]
[1724658067531,1.33612674,2739.1,2739.0,0.36497]
[1724658067918,1.34040787,2739.1,2739.0,0.36784821]
[1724658068123,0.38718113,2739.1,2739.0,0.36784821]
[1724658068530,1.34040787,2739.1,2739.0,0.36784821]
[1724658069527,1.34040787,2739.1,2739.0,0.00287821]
[1724658069831,4.99160787,2739.1,2739.0,0.00287821]
[1724658070026,5.37120787,2739.1,2739.0,0.00287821]
[1724658070726,5.37120787,2739.1,2739.0,0.36785821]
[1724658071228,4.41798113,2739.1,2739.0,0.36785821]
[1724658078244,4.78295113,2739.1,2739.0,0.36785821]
[1724658078943,4.41798113,2739.1,2739.0,0.36785821]
[1724658083851,9.41798113,2739.1,2738.5,0.3574]
[1724658084052,0.76678113,2739.1,2738.5,0.3574]
[1724658084253,0.76678113,2739.1,2739.0,0.36498]
[1724658084561,4.41798113,2739.1,2739.0,0.36498]
[1724658085050,4.78295113,2739.1,2739.0,0.36925103]
[1724658085643,4.41798113,2739.1,2739.0,0.36925103]
[1724658087556,4.78295113,2739.1,2739.0,0.36925103]
[1724658088052,5.83295113,2739.1,2739.0,0.36925103]
[1724658090663,9.99397787,2739.1,2739.0,0.36925103]
[1724658093548,9.04075113,2739.1,2739.0,0.00427103]
[1724658093762,10.47059125,2739.1,2739.0,0.00427103]
[1724658096757,9.04075113,2739.1,2739.0,0.00427103]
[1724658097065,9.95318113,2739.1,2739.0,0.00427103]
[1724658097458,11.85963462,2739.1,2739.0,0.00427103]
[1724658098562,8.67578113,2739.1,2739.0,0.36925103]
[1724658098767,7.62578113,2739.1,2739.0,0.36925103]
[1724658098958,3.97458113,2739.1,2739.0,0.36925103]
[1724658099160,3.21208113,2739.1,2739.0,1.41925103]
[1724658099366,0.00428113,2739.1,2739.0,5.53951103]
[1724658099662,0.00428113,2739.1,2739.0,9.19071103]
[1724658099860,0.00428113,2739.1,2739.0,8.27825103]
[1724658102466,0.00428113,2739.1,2739.0,3.57705103]
[1724658103859,0.00428113,2739.1,2739.0,8.27825103]
[1724658106270,0.00428113,2739.1,2739.0,3.57705103]
[1724658107965,0.00428113,2739.1,2739.0,4.62705103]
[1724658108269,0.00547615,2739.5,2739.4,0.36493]
[1724658108270,0.00356756,2739.5,2739.4,0.36493]
[1724658108462,0.00356756,2739.5,2739.4,18.11493]
[1724658108659,0.00356756,2739.5,2739.4,25.66822791]
[1724658109063,0.00768079,2739.5,2739.4,25.66822791]